[Event "Early-Titled-Tuesday-Blitz-September-26-2023"]
[Site "Chess.com"]
[Date "2023.09.26"]
[Round "4"]
[White "betta2004"]
[Black "attack2mateU"]
[Result "0-1"]
[WhiteElo "2549"]
[BlackElo "2747"]
[TimeControl "180+1"]
[EndTime "8:40:31 PDT"]
[Termination "attack2mateU won by resignation"]

1. e4 {[%clk 0:03:00.9]} 1... c5 {[%clk 0:02:59.5]} 2. Nc3 {[%clk 0:02:58.5]}
2... d6 {[%clk 0:02:59.8]} 3. d4 {[%clk 0:02:56.2]} 3... cxd4 {[%clk 0:03:00.7]}
4. Qxd4 {[%clk 0:02:57]} 4... Nc6 {[%clk 0:03:00.2]} 5. Qd2 {[%clk 0:02:57]}
5... g6 {[%clk 0:03:00.5]} 6. b3 {[%clk 0:02:56.8]} 6... Bh6 {[%clk 0:03:00.9]}
7. f4 {[%clk 0:02:56.6]} 7... Nf6 {[%clk 0:03:01.6]} 8. Bb2 {[%clk 0:02:56.5]}
8... O-O {[%clk 0:03:02.1]} 9. O-O-O {[%clk 0:02:55.9]} 9... e5 {[%clk
0:03:02.8]} 10. g3 {[%clk 0:02:56.1]} 10... Re8 {[%clk 0:03:03.4]} 11. Bg2
{[%clk 0:02:52.8]} 11... Bg4 {[%clk 0:03:01.4]} 12. Rf1 {[%clk 0:02:50]} 12...
Rc8 {[%clk 0:02:02.7]} 13. h3 {[%clk 0:02:45.3]} 13... Be6 {[%clk 0:01:56.4]}
14. Nd5 {[%clk 0:02:43.9]} 14... Bxd5 {[%clk 0:01:44.5]} 15. exd5 {[%clk
0:02:44.8]} 15... Nd4 {[%clk 0:01:43.1]} 16. Bxd4 {[%clk 0:02:25.1]} 16... exd4
{[%clk 0:01:44]} 17. Qxd4 {[%clk 0:02:19.8]} 17... Qa5 {[%clk 0:01:35.9]} 18. a4
{[%clk 0:01:20.4]} 18... Re1+ {[%clk 0:01:08.1]} 19. Rxe1 {[%clk 0:01:19]} 19...
Qxe1+ {[%clk 0:01:09]} 20. Qd1 {[%clk 0:01:15.3]} 20... Qxg3 {[%clk 0:01:07.6]}
21. Qf3 {[%clk 0:01:12]} 21... Bxf4+ {[%clk 0:00:57.8]} 22. Kb2 {[%clk
0:01:04.6]} 22... Be5+ {[%clk 0:00:56.5]} 23. Ka3 {[%clk 0:01:04.2]} 23... Rxc2
{[%clk 0:00:38.8]} 24. Qxg3 {[%clk 0:01:02.6]} 24... Bxg3 {[%clk 0:00:39.7]} 25.
Bf3 {[%clk 0:01:01.6]} 25... Rf2 {[%clk 0:00:14.4]} 26. h4 {[%clk 0:00:59]}
26... h5 {[%clk 0:00:14.7]} 27. Rh3 {[%clk 0:00:59]} 27... Be5 {[%clk
0:00:12.6]} 28. Ne2 {[%clk 0:00:59.2]} 28... a5 {[%clk 0:00:12.4]} 29. b4 {[%clk
0:00:54.1]} 29... b6 {[%clk 0:00:12.9]} 30. bxa5 {[%clk 0:00:53]} 30... bxa5
{[%clk 0:00:13.8]} 31. Kb3 {[%clk 0:00:53.9]} 31... Nd7 {[%clk 0:00:14.3]} 32.
Kc4 {[%clk 0:00:51.8]} 32... Nc5 {[%clk 0:00:14.7]} 33. Kb5 {[%clk 0:00:52.3]}
33... Rf1 {[%clk 0:00:06.6]} 34. Bg2 {[%clk 0:00:43.4]} 34... Rb1+ {[%clk
0:00:07]} 35. Kc6 {[%clk 0:00:43.6]} 35... Nxa4 {[%clk 0:00:07.1]} 36. Ra3
{[%clk 0:00:40]} 36... Rb6+ {[%clk 0:00:07.5]} 37. Kd7 {[%clk 0:00:40.2]} 37...
Rb4 {[%clk 0:00:08.4]} 38. Nc1 {[%clk 0:00:36.1]} 38... Nc5+ {[%clk 0:00:08.4]}
39. Ke7 {[%clk 0:00:36]} 39... a4 {[%clk 0:00:09.3]} 40. Nd3 {[%clk 0:00:36.1]}
40... Nxd3 {[%clk 0:00:09.1]} 41. Rxd3 {[%clk 0:00:36.3]} 41... Rb3 {[%clk
0:00:09.7]} 42. Rd2 {[%clk 0:00:32.1]} 42... a3 {[%clk 0:00:10]} 43. Rc2 {[%clk
0:00:32.7]} 43... Kg7 {[%clk 0:00:08.3]} 44. Rf2 {[%clk 0:00:32.2]} 44... f5
{[%clk 0:00:06.9]} 45. Rc2 {[%clk 0:00:17.9]} 45... Rb2 {[%clk 0:00:05.3]} 46.
Rc7 {[%clk 0:00:18.7]} 46... a2 {[%clk 0:00:04.3]} 47. Ke8+ {[%clk 0:00:19.6]}
47... Kh6 {[%clk 0:00:04.1]} 48. Bf1 {[%clk 0:00:03.9]} 48... a1=Q {[%clk
0:00:03.9]} 49. Bb5 {[%clk 0:00:04.3]} 49... Qa8+ {[%clk 0:00:03.9]} 50. Kf7
{[%clk 0:00:04.1]} 50... Rxb5 {[%clk 0:00:04.1]} 51. Ke6 {[%clk 0:00:02.6]}
51... Qxd5+ {[%clk 0:00:03.6]} 52. Ke7 {[%clk 0:00:02.7]} 52... f4 {[%clk
0:00:03.2]} 53. Kf8 {[%clk 0:00:02.8]} 53... Bg7+ {[%clk 0:00:02.2]} 54. Rxg7
{[%clk 0:00:01.8]} 54... Rb8+ {[%clk 0:00:02.9]} 55. Ke7 {[%clk 0:00:02.4]}
55... Qb7+ {[%clk 0:00:03.3]} 56. Ke6 {[%clk 0:00:02]} 56... Qxg7 {[%clk
0:00:03.6]} 0-1

[Event "Early-Titled-Tuesday-Blitz-September-26-2023"]
[Site "Chess.com"]
[Date "2023.09.26"]
[Round "4"]
[White "JiiHart"]
[Black "Masterbeaterr"]
[Result "0-1"]
[WhiteElo "2174"]
[BlackElo "2448"]
[TimeControl "180+1"]
[EndTime "8:40:32 PDT"]
[Termination "Masterbeaterr won on time"]

1. e4 {[%clk 0:03:00.9]} 1... e5 {[%clk 0:02:59.7]} 2. Nf3 {[%clk 0:03:00.3]}
2... Nc6 {[%clk 0:02:59.9]} 3. Bc4 {[%clk 0:03:00.1]} 3... Nf6 {[%clk
0:02:59.4]} 4. d3 {[%clk 0:02:59.6]} 4... h6 {[%clk 0:02:58.8]} 5. c3 {[%clk
0:02:59]} 5... d6 {[%clk 0:02:59.4]} 6. h3 {[%clk 0:02:58.2]} 6... g6 {[%clk
0:02:58.9]} 7. O-O {[%clk 0:02:48.8]} 7... Bg7 {[%clk 0:02:58.8]} 8. Re1 {[%clk
0:02:48.6]} 8... O-O {[%clk 0:02:58.7]} 9. Nbd2 {[%clk 0:02:43.3]} 9... Be6
{[%clk 0:02:53.3]} 10. Bxe6 {[%clk 0:02:26.4]} 10... fxe6 {[%clk 0:02:54.2]} 11.
Qb3 {[%clk 0:02:26.3]} 11... Qc8 {[%clk 0:02:54.4]} 12. d4 {[%clk 0:02:22.4]}
12... exd4 {[%clk 0:02:51.9]} 13. cxd4 {[%clk 0:02:22.9]} 13... d5 {[%clk
0:02:51.2]} 14. exd5 {[%clk 0:02:11.9]} 14... exd5 {[%clk 0:02:52.1]} 15. Ne5
{[%clk 0:02:07.4]} 15... Nxd4 {[%clk 0:02:49.9]} 16. Qd3 {[%clk 0:01:58]} 16...
c5 {[%clk 0:02:21.9]} 17. Nxg6 {[%clk 0:01:48.6]} 17... Re8 {[%clk 0:02:06.8]}
18. Ne7+ {[%clk 0:01:43.4]} 18... Rxe7 {[%clk 0:02:06.9]} 19. Rxe7 {[%clk
0:01:43.5]} 19... Qf8 {[%clk 0:02:06.7]} 20. Rxb7 {[%clk 0:01:32.5]} 20... Re8
{[%clk 0:02:06.7]} 21. Nf3 {[%clk 0:01:10.6]} 21... Nxf3+ {[%clk 0:02:02.4]} 22.
Qxf3 {[%clk 0:01:10.5]} 22... Re1+ {[%clk 0:02:02.7]} 23. Kh2 {[%clk 0:01:10.2]}
23... Ne4 {[%clk 0:01:46.5]} 24. Qxf8+ {[%clk 0:00:47.8]} 24... Bxf8 {[%clk
0:01:47.4]} 25. Rb8 {[%clk 0:00:36.6]} 25... Re2 {[%clk 0:01:39.7]} 26. Bxh6
{[%clk 0:00:32.6]} 26... Rxf2 {[%clk 0:01:39.6]} 27. Rxf8+ {[%clk 0:00:32.3]}
27... Rxf8 {[%clk 0:01:39.2]} 28. Bxf8 {[%clk 0:00:32.5]} 28... Kxf8 {[%clk
0:01:40.1]} 29. Rf1+ {[%clk 0:00:28.5]} 29... Ke7 {[%clk 0:01:38.3]} 30. h4
{[%clk 0:00:28]} 30... d4 {[%clk 0:01:37.5]} 31. h5 {[%clk 0:00:28]} 31... Ng5
{[%clk 0:01:37]} 32. h6 {[%clk 0:00:27]} 32... d3 {[%clk 0:01:35.6]} 33. Kg3
{[%clk 0:00:23.6]} 33... c4 {[%clk 0:01:32.5]} 34. Kg4 {[%clk 0:00:23.7]} 34...
Nh7 {[%clk 0:01:30.2]} 35. Rf4 {[%clk 0:00:21.6]} 35... Nf6+ {[%clk 0:01:27.9]}
36. Kg5 {[%clk 0:00:20.3]} 36... Nd5 {[%clk 0:01:09.9]} 37. h7 {[%clk
0:00:17.7]} 37... Nxf4 {[%clk 0:01:08.8]} 38. h8=Q {[%clk 0:00:16.1]} 38... Ne6+
{[%clk 0:01:07]} 39. Kf5 {[%clk 0:00:15]} 39... Kd7 {[%clk 0:00:54.7]} 40. Qh6
{[%clk 0:00:13]} 40... Nd4+ {[%clk 0:00:49]} 41. Ke4 {[%clk 0:00:12.5]} 41...
Ne2 {[%clk 0:00:49.9]} 42. Qh3+ {[%clk 0:00:09]} 42... Kd6 {[%clk 0:00:48.9]}
43. Qh6+ {[%clk 0:00:08.9]} 43... Kc5 {[%clk 0:00:47.6]} 44. g4 {[%clk
0:00:07.7]} 44... Ng3+ {[%clk 0:00:44.4]} 45. Ke3 {[%clk 0:00:08]} 45... Kd5
{[%clk 0:00:41]} 46. Kd2 {[%clk 0:00:07.4]} 46... Ne4+ {[%clk 0:00:40.2]} 47.
Ke1 {[%clk 0:00:06.6]} 47... Kd4 {[%clk 0:00:40.4]} 48. g5 {[%clk 0:00:06.8]}
48... c3 {[%clk 0:00:38.4]} 49. bxc3+ {[%clk 0:00:06]} 49... Kxc3 {[%clk
0:00:38.9]} 50. Qg7+ {[%clk 0:00:05.4]} 50... Kc2 {[%clk 0:00:39]} 51. Qc7+
{[%clk 0:00:05.1]} 51... Nc3 {[%clk 0:00:38.7]} 52. Qxc3+ {[%clk 0:00:04.3]}
52... Kxc3 {[%clk 0:00:38.6]} 53. g6 {[%clk 0:00:04.8]} 53... Kc2 {[%clk
0:00:38.8]} 54. g7 {[%clk 0:00:05.3]} 54... d2+ {[%clk 0:00:39.6]} 55. Kf2
{[%clk 0:00:05.8]} 55... d1=Q {[%clk 0:00:40.5]} 56. g8=Q {[%clk 0:00:06.1]}
56... Qd4+ {[%clk 0:00:36]} 57. Kf3 {[%clk 0:00:05.9]} 57... Qd3+ {[%clk
0:00:28.7]} 58. Kf2 {[%clk 0:00:06.1]} 58... a6 {[%clk 0:00:25.9]} 59. Qg7
{[%clk 0:00:02.8]} 59... Kb1 {[%clk 0:00:20.5]} 60. a4 {[%clk 0:00:01.6]} 60...
Qc2+ {[%clk 0:00:18.4]} 0-1

[Event "Early-Titled-Tuesday-Blitz-September-26-2023"]
[Site "Chess.com"]
[Date "2023.09.26"]
[Round "4"]
[White "NowInChess"]
[Black "Smile2005"]
[Result "1-0"]
[WhiteElo "2267"]
[BlackElo "2414"]
[TimeControl "180+1"]
[EndTime "8:40:33 PDT"]
[Termination "NowInChess won by checkmate"]

1. e4 {[%clk 0:03:00.9]} 1... c5 {[%clk 0:02:56]} 2. Nc3 {[%clk 0:03:00.6]} 2...
e6 {[%clk 0:02:52]} 3. g3 {[%clk 0:02:57.1]} 3... d6 {[%clk 0:02:51.8]} 4. Bg2
{[%clk 0:02:56.6]} 4... Nc6 {[%clk 0:02:51.2]} 5. f4 {[%clk 0:02:51.9]} 5...
Nge7 {[%clk 0:02:50.7]} 6. Nf3 {[%clk 0:02:50.7]} 6... g6 {[%clk 0:02:49.9]} 7.
d3 {[%clk 0:02:48.2]} 7... Bg7 {[%clk 0:02:36.1]} 8. O-O {[%clk 0:02:48.2]} 8...
O-O {[%clk 0:02:01.2]} 9. Be3 {[%clk 0:02:42.1]} 9... Nd4 {[%clk 0:01:48.6]} 10.
Qd2 {[%clk 0:02:36.7]} 10... Nec6 {[%clk 0:01:41.5]} 11. Nh4 {[%clk 0:02:34.4]}
11... b5 {[%clk 0:01:35.2]} 12. Rae1 {[%clk 0:02:22.7]} 12... b4 {[%clk
0:01:33.8]} 13. Nd1 {[%clk 0:02:23.1]} 13... a5 {[%clk 0:01:32.4]} 14. c3 {[%clk
0:02:21.7]} 14... bxc3 {[%clk 0:01:31.5]} 15. bxc3 {[%clk 0:02:22.6]} 15... Nb5
{[%clk 0:01:21.1]} 16. f5 {[%clk 0:02:05.5]} 16... exf5 {[%clk 0:01:16.7]} 17.
exf5 {[%clk 0:02:00.6]} 17... Ra6 {[%clk 0:01:15.6]} 18. Bd5 {[%clk 0:01:41.4]}
18... Kh8 {[%clk 0:01:07.5]} 19. fxg6 {[%clk 0:01:29.3]} 19... fxg6 {[%clk
0:01:07.1]} 20. Bg5 {[%clk 0:01:25.5]} 20... Rxf1+ {[%clk 0:01:04.1]} 21. Rxf1
{[%clk 0:01:23.9]} 21... Qe8 {[%clk 0:00:57.9]} 22. Bh6 {[%clk 0:00:52.7]} 22...
Be6 {[%clk 0:00:56.7]} 23. Bxg7+ {[%clk 0:00:46.3]} 23... Kxg7 {[%clk
0:00:55.3]} 24. Qg5 {[%clk 0:00:43.1]} 24... Bxd5 {[%clk 0:00:52.8]} 25. Qxd5
{[%clk 0:00:41.1]} 25... Ne5 {[%clk 0:00:47.2]} 26. d4 {[%clk 0:00:28.3]} 26...
cxd4 {[%clk 0:00:41]} 27. cxd4 {[%clk 0:00:29.2]} 27... Nc6 {[%clk 0:00:38.4]}
28. Qxb5 {[%clk 0:00:21.3]} 28... Ra8 {[%clk 0:00:20.2]} 29. d5 {[%clk
0:00:16.3]} 29... Nd4 {[%clk 0:00:19.8]} 30. Qb2 {[%clk 0:00:11.6]} 30... Qe5
{[%clk 0:00:18.8]} 31. Qf2 {[%clk 0:00:06.8]} 31... Ne2+ {[%clk 0:00:15.1]} 32.
Kh1 {[%clk 0:00:06.2]} 32... Qxd5+ {[%clk 0:00:14.9]} 33. Ng2 {[%clk 0:00:06.1]}
33... Qf5 {[%clk 0:00:11.9]} 34. Qxf5 {[%clk 0:00:05.8]} 34... gxf5 {[%clk
0:00:11.9]} 35. Nf4 {[%clk 0:00:05.2]} 35... Nd4 {[%clk 0:00:12.8]} 36. Nd5
{[%clk 0:00:04.2]} 36... Rb8 {[%clk 0:00:13.1]} 37. N1e3 {[%clk 0:00:04.5]}
37... Rb2 {[%clk 0:00:12.9]} 38. Nxf5+ {[%clk 0:00:04.4]} 38... Nxf5 {[%clk
0:00:13.4]} 39. Rxf5 {[%clk 0:00:03.9]} 39... Rxa2 {[%clk 0:00:14.3]} 40. Rf1
{[%clk 0:00:02.6]} 40... a4 {[%clk 0:00:14.2]} 41. h4 {[%clk 0:00:02.8]} 41...
a3 {[%clk 0:00:14.4]} 42. Nc3 {[%clk 0:00:03.4]} 42... d5 {[%clk 0:00:13.6]} 43.
Nxa2 {[%clk 0:00:02.4]} 43... d4 {[%clk 0:00:13.6]} 44. Rd1 {[%clk 0:00:03.3]}
44... Kg6 {[%clk 0:00:13.2]} 45. Rd3 {[%clk 0:00:04.2]} 45... Kf5 {[%clk
0:00:13.5]} 46. Rxd4 {[%clk 0:00:05.1]} 46... Ke5 {[%clk 0:00:13.9]} 47. Ra4
{[%clk 0:00:06]} 47... h5 {[%clk 0:00:14.6]} 48. Rxa3 {[%clk 0:00:06.8]} 48...
Ke4 {[%clk 0:00:15.3]} 49. Ra4+ {[%clk 0:00:06.8]} 49... Kf3 {[%clk 0:00:16.2]}
50. Ra3+ {[%clk 0:00:06.5]} 50... Kg4 {[%clk 0:00:16.4]} 51. Kg2 {[%clk
0:00:06.1]} 51... Kf5 {[%clk 0:00:16.5]} 52. Ra4 {[%clk 0:00:06.6]} 52... Kg6
{[%clk 0:00:16.3]} 53. Rf4 {[%clk 0:00:07.5]} 53... Kh6 {[%clk 0:00:17]} 54. Kf3
{[%clk 0:00:07.9]} 54... Kg6 {[%clk 0:00:17.9]} 55. Ke4 {[%clk 0:00:08.1]} 55...
Kh6 {[%clk 0:00:18.8]} 56. Ke5 {[%clk 0:00:08.1]} 56... Kg6 {[%clk 0:00:19.7]}
57. Ke6 {[%clk 0:00:08.2]} 57... Kh6 {[%clk 0:00:20.6]} 58. Kf6 {[%clk
0:00:08.6]} 58... Kh7 {[%clk 0:00:21]} 59. Rf5 {[%clk 0:00:08.8]} 59... Kh6
{[%clk 0:00:21.5]} 60. Rg5 {[%clk 0:00:08.7]} 60... Kh7 {[%clk 0:00:21.9]} 61.
Kf7 {[%clk 0:00:08.5]} 61... Kh6 {[%clk 0:00:21.8]} 62. Nb4 {[%clk 0:00:08.1]}
62... Kh7 {[%clk 0:00:21.8]} 63. Rxh5# {[%clk 0:00:09]} 1-0

[Event "Early-Titled-Tuesday-Blitz-September-26-2023"]
[Site "Chess.com"]
[Date "2023.09.26"]
[Round "4"]
[White "Honiex"]
[Black "Mops_2004"]
[Result "0-1"]
[WhiteElo "2574"]
[BlackElo "2769"]
[TimeControl "180+1"]
[EndTime "8:40:35 PDT"]
[Termination "Mops_2004 won by resignation"]

1. d4 {[%clk 0:03:00.9]} 1... g6 {[%clk 0:02:59.6]} 2. Nc3 {[%clk 0:03:00.3]}
2... Bg7 {[%clk 0:02:59.8]} 3. e4 {[%clk 0:03:00.6]} 3... d6 {[%clk 0:03:00]} 4.
Nf3 {[%clk 0:03:00.7]} 4... a6 {[%clk 0:02:59.8]} 5. Be3 {[%clk 0:03:00.4]} 5...
Nf6 {[%clk 0:02:59.1]} 6. Qd2 {[%clk 0:02:59.1]} 6... O-O {[%clk 0:02:58.3]} 7.
Bh6 {[%clk 0:02:59]} 7... c5 {[%clk 0:02:52.1]} 8. h4 {[%clk 0:02:56.3]} 8...
cxd4 {[%clk 0:02:49.9]} 9. Nxd4 {[%clk 0:02:57.2]} 9... Bxh6 {[%clk 0:02:45.9]}
10. Qxh6 {[%clk 0:02:56.5]} 10... Ng4 {[%clk 0:02:42]} 11. Qd2 {[%clk
0:02:53.8]} 11... h5 {[%clk 0:02:41.8]} 12. f3 {[%clk 0:02:51.6]} 12... Nf6
{[%clk 0:02:41.6]} 13. Qh6 {[%clk 0:02:45.7]} 13... Nc6 {[%clk 0:02:32.2]} 14.
O-O-O {[%clk 0:02:38.2]} 14... Nxd4 {[%clk 0:02:27.4]} 15. Rxd4 {[%clk
0:02:39.1]} 15... Qb6 {[%clk 0:02:27.6]} 16. Rd2 {[%clk 0:02:17.6]} 16... Be6
{[%clk 0:02:20]} 17. g4 {[%clk 0:02:16.3]} 17... Rfc8 {[%clk 0:02:06.4]} 18.
gxh5 {[%clk 0:02:08.8]} 18... Nxh5 {[%clk 0:01:56.1]} 19. Bh3 {[%clk 0:01:59.9]}
19... Bxh3 {[%clk 0:01:29.1]} 20. Nd5 {[%clk 0:01:59.4]} 20... Qd8 {[%clk
0:01:29.1]} 21. Rxh3 {[%clk 0:01:57]} 21... e6 {[%clk 0:01:21.2]} 22. Ne3 {[%clk
0:01:48.4]} 22... Qf6 {[%clk 0:00:58.1]} 23. Ng4 {[%clk 0:01:14.8]} 23... Qf4
{[%clk 0:00:56.4]} 24. Qxf4 {[%clk 0:01:10.5]} 24... Nxf4 {[%clk 0:00:56.5]} 25.
Rg3 {[%clk 0:01:11.4]} 25... Rd8 {[%clk 0:00:40.2]} 26. h5 {[%clk 0:01:11.1]}
26... Nxh5 {[%clk 0:00:39.6]} 27. Rg1 {[%clk 0:01:06.7]} 27... Kf8 {[%clk
0:00:38.1]} 28. Rf2 {[%clk 0:00:40.7]} 28... Ke7 {[%clk 0:00:36.1]} 29. f4
{[%clk 0:00:40.6]} 29... Nf6 {[%clk 0:00:36.1]} 30. Nxf6 {[%clk 0:00:30.6]}
30... Kxf6 {[%clk 0:00:37]} 31. e5+ {[%clk 0:00:30.6]} 31... Ke7 {[%clk
0:00:36.3]} 32. Rh1 {[%clk 0:00:26.9]} 32... Rh8 {[%clk 0:00:26.4]} 33. exd6+
{[%clk 0:00:26.6]} 33... Kxd6 {[%clk 0:00:27.1]} 34. Rd1+ {[%clk 0:00:27]} 34...
Ke7 {[%clk 0:00:27.5]} 35. c4 {[%clk 0:00:23]} 35... Rac8 {[%clk 0:00:26]} 36.
b3 {[%clk 0:00:19.7]} 36... b5 {[%clk 0:00:26.1]} 37. Rd4 {[%clk 0:00:16.5]}
37... Rh5 {[%clk 0:00:24.4]} 38. Kc2 {[%clk 0:00:15.8]} 38... bxc4 {[%clk
0:00:24.5]} 39. Rxc4 {[%clk 0:00:13.1]} 39... Rxc4+ {[%clk 0:00:24.5]} 40. bxc4
{[%clk 0:00:14]} 40... Rf5 {[%clk 0:00:21.6]} 41. Kc3 {[%clk 0:00:10.7]} 41...
g5 {[%clk 0:00:22]} 42. Rb2 {[%clk 0:00:10.5]} 42... gxf4 {[%clk 0:00:21.6]} 43.
Kd4 {[%clk 0:00:07.3]} 43... f3 {[%clk 0:00:21.7]} 44. Rf2 {[%clk 0:00:07.4]}
44... Rf4+ {[%clk 0:00:21.7]} 45. Kc5 {[%clk 0:00:06.6]} 45... e5 {[%clk
0:00:20.5]} 46. Kd5 {[%clk 0:00:06.2]} 46... Kf6 {[%clk 0:00:18.9]} 47. c5
{[%clk 0:00:06.2]} 47... Rd4+ {[%clk 0:00:18.8]} 48. Kc6 {[%clk 0:00:06.2]}
48... e4 {[%clk 0:00:19.1]} 49. Kb7 {[%clk 0:00:05.8]} 49... Ke5 {[%clk
0:00:18]} 50. c6 {[%clk 0:00:06.3]} 50... Rc4 {[%clk 0:00:17.5]} 51. c7 {[%clk
0:00:06.7]} 51... Kf4 {[%clk 0:00:15.9]} 52. Rb2 {[%clk 0:00:05.9]} 52... f5
{[%clk 0:00:13.3]} 53. a4 {[%clk 0:00:04.2]} 53... a5 {[%clk 0:00:12.8]} 54. Rb6
{[%clk 0:00:02.2]} 54... Rxc7+ {[%clk 0:00:12.3]} 55. Kxc7 {[%clk 0:00:02.2]}
55... f2 {[%clk 0:00:13.2]} 56. Rb1 {[%clk 0:00:02.1]} 56... e3 {[%clk
0:00:13.7]} 57. Kb6 {[%clk 0:00:02.8]} 57... e2 {[%clk 0:00:14.1]} 58. Kxa5
{[%clk 0:00:03.1]} 58... e1=Q+ {[%clk 0:00:14.5]} 0-1

[Event "Early-Titled-Tuesday-Blitz-September-26-2023"]
[Site "Chess.com"]
[Date "2023.09.26"]
[Round "4"]
[White "yoelpolanco"]
[Black "CristianS27"]
[Result "1-0"]
[WhiteElo "2338"]
[BlackElo "2499"]
[TimeControl "180+1"]
[EndTime "8:40:36 PDT"]
[Termination "yoelpolanco won by resignation"]

1. d4 {[%clk 0:03:00.9]} 1... Nf6 {[%clk 0:02:55.7]} 2. Nf3 {[%clk 0:03:01.3]}
2... g6 {[%clk 0:02:55.9]} 3. c4 {[%clk 0:03:00.7]} 3... Bg7 {[%clk 0:02:56.1]}
4. Nc3 {[%clk 0:03:00.6]} 4... O-O {[%clk 0:02:57]} 5. e4 {[%clk 0:03:00.5]}
5... d6 {[%clk 0:02:57.2]} 6. Be2 {[%clk 0:03:01.2]} 6... e5 {[%clk 0:02:56.7]}
7. O-O {[%clk 0:03:02.1]} 7... exd4 {[%clk 0:02:57.1]} 8. Nxd4 {[%clk 0:03:02]}
8... Re8 {[%clk 0:02:58]} 9. f3 {[%clk 0:03:02.3]} 9... Nc6 {[%clk 0:02:58.7]}
10. Be3 {[%clk 0:03:02]} 10... Nh5 {[%clk 0:02:55.8]} 11. Nxc6 {[%clk
0:02:54.4]} 11... bxc6 {[%clk 0:02:54]} 12. Qd2 {[%clk 0:02:54.7]} 12... c5
{[%clk 0:02:53.5]} 13. Rab1 {[%clk 0:02:45.1]} 13... Qh4 {[%clk 0:02:53]} 14.
Bg5 {[%clk 0:02:21.1]} 14... Bd4+ {[%clk 0:02:52.7]} 15. Qxd4 {[%clk 0:02:21.6]}
15... Qxg5 {[%clk 0:02:43]} 16. Qd5 {[%clk 0:02:18.4]} 16... Qe3+ {[%clk
0:02:27.8]} 17. Kh1 {[%clk 0:02:16.4]} 17... Be6 {[%clk 0:02:28.7]} 18. Qd1
{[%clk 0:02:14]} 18... Rab8 {[%clk 0:02:03.9]} 19. Qc1 {[%clk 0:02:11.3]} 19...
Qd4 {[%clk 0:01:51.2]} 20. Rd1 {[%clk 0:02:10.8]} 20... Qf2 {[%clk 0:01:47.6]}
21. Rf1 {[%clk 0:02:04.9]} 21... Qh4 {[%clk 0:01:47]} 22. Kg1 {[%clk 0:02:05.4]}
22... Nf4 {[%clk 0:01:30.3]} 23. g3 {[%clk 0:01:56.1]} 23... Nxe2+ {[%clk
0:01:28.5]} 24. Nxe2 {[%clk 0:01:54.1]} 24... Qf6 {[%clk 0:01:28.9]} 25. b3
{[%clk 0:01:51.8]} 25... a5 {[%clk 0:01:28.7]} 26. Qc3 {[%clk 0:01:50.1]} 26...
Qxc3 {[%clk 0:01:19.5]} 27. Nxc3 {[%clk 0:01:50]} 27... f5 {[%clk 0:01:20.4]}
28. Rbe1 {[%clk 0:01:47.5]} 28... fxe4 {[%clk 0:01:12]} 29. Nxe4 {[%clk
0:01:45.7]} 29... Kg7 {[%clk 0:01:10.5]} 30. Nc3 {[%clk 0:01:43.7]} 30... Bh3
{[%clk 0:01:08]} 31. Rxe8 {[%clk 0:01:39.5]} 31... Rxe8 {[%clk 0:01:08.9]} 32.
Rc1 {[%clk 0:01:37.2]} 32... a4 {[%clk 0:01:04]} 33. bxa4 {[%clk 0:01:33.1]}
33... c6 {[%clk 0:00:48.9]} 34. Kf2 {[%clk 0:01:32.5]} 34... Bf5 {[%clk
0:00:46.1]} 35. Rd1 {[%clk 0:01:31.4]} 35... Rd8 {[%clk 0:00:37]} 36. g4 {[%clk
0:01:28.8]} 36... Be6 {[%clk 0:00:35]} 37. Ne4 {[%clk 0:01:25.1]} 37... Bxc4
{[%clk 0:00:33.1]} 38. Nxd6 {[%clk 0:01:18.2]} 38... Bd5 {[%clk 0:00:29.1]} 39.
Nb7 {[%clk 0:01:13.8]} 39... Rb8 {[%clk 0:00:26.7]} 40. Nxc5 {[%clk 0:01:13.7]}
40... Rb2+ {[%clk 0:00:26.9]} 41. Kg3 {[%clk 0:01:11.7]} 41... Rxa2 {[%clk
0:00:27.2]} 42. Rd3 {[%clk 0:01:05.4]} 42... g5 {[%clk 0:00:25.4]} 43. h4 {[%clk
0:01:04.9]} 43... h6 {[%clk 0:00:24.8]} 44. hxg5 {[%clk 0:01:04.1]} 44... hxg5
{[%clk 0:00:25.7]} 45. Re3 {[%clk 0:00:58.4]} 45... Rc2 {[%clk 0:00:20.8]} 46.
Ne6+ {[%clk 0:00:55.3]} 46... Kf6 {[%clk 0:00:18.8]} 47. Nc7 {[%clk 0:00:55.5]}
47... Ra2 {[%clk 0:00:14.5]} 48. Nxd5+ {[%clk 0:00:44.4]} 48... cxd5 {[%clk
0:00:15.4]} 49. Rd3 {[%clk 0:00:43.7]} 49... Ke5 {[%clk 0:00:15.6]} 50. Re3+
{[%clk 0:00:39]} 50... Kd4 {[%clk 0:00:09.8]} 51. Re6 {[%clk 0:00:38.7]} 51...
Rxa4 {[%clk 0:00:07.6]} 52. Rg6 {[%clk 0:00:39.3]} 52... Ke3 {[%clk 0:00:07.3]}
53. Rxg5 {[%clk 0:00:38.7]} 53... d4 {[%clk 0:00:07.9]} 54. Re5+ {[%clk
0:00:39.1]} 54... Kd2 {[%clk 0:00:06.9]} 55. g5 {[%clk 0:00:39.4]} 55... d3
{[%clk 0:00:07.1]} 56. g6 {[%clk 0:00:39.7]} 56... Ra8 {[%clk 0:00:04.5]} 57.
Rd5 {[%clk 0:00:37.5]} 57... Kc3 {[%clk 0:00:04.5]} 58. f4 {[%clk 0:00:37.3]}
58... d2 {[%clk 0:00:04.7]} 59. f5 {[%clk 0:00:37.5]} 59... Kc2 {[%clk
0:00:02.4]} 60. f6 {[%clk 0:00:36]} 60... Ra6 {[%clk 0:00:03.1]} 61. g7 {[%clk
0:00:33.4]} 61... Ra1 {[%clk 0:00:02.9]} 62. Kg2 {[%clk 0:00:27.5]} 62... d1=Q
{[%clk 0:00:02.3]} 63. Rxd1 {[%clk 0:00:26]} 63... Rxd1 {[%clk 0:00:03.2]} 64.
g8=Q {[%clk 0:00:24.1]} 64... Rd2+ {[%clk 0:00:03.4]} 65. Kf3 {[%clk 0:00:22.9]}
65... Rd8 {[%clk 0:00:03.6]} 66. Qxd8 {[%clk 0:00:22.4]} 1-0